lending/lending_fUSD_20250418
["ID","MTS","AMOUNT","RATE_DAILY","PERIOD"]
[358361739,1744995038130,-195.34546058,0.00038356,2]
[358361740,1744995038139,-152.88,0.00038553,2]
[358361741,1744995038148,-749.75,0.00038553,2]
[358361742,1744995038157,-150.0,0.00038624,2]
[358361743,1744995038167,-2114.14,0.00038795,2]
[358361744,1744995038177,-2606.87321937,0.00039272,2]
[358361745,1744995038186,-164.7488312,0.00039686,2]
[358361746,1744995038195,-500.0,0.00039877,31]
[358361747,1744995038205,-500.0,0.00039877,31]
[358361748,1744995038214,-500.0,0.00039877,31]
[358361749,1744995038223,-500.0,0.00039877,31]
[358361750,1744995038233,-500.0,0.00039877,31]
[358361751,1744995038242,-500.0,0.00039877,31]
[358361752,1744995038252,-500.0,0.00039877,31]
[358361753,1744995038261,-500.0,0.00039877,31]
[358361754,1744995038271,-500.0,0.00039877,31]
[358361755,1744995038280,-500.0,0.00039877,31]
[358361756,1744995038289,-500.0,0.00039877,31]
[358361757,1744995038299,-500.0,0.00039877,31]
[358361758,1744995038308,-500.0,0.00039877,31]
[358361759,1744995038317,-500.0,0.00039877,31]
[358361760,1744995038327,-500.0,0.00039877,31]
[358361761,1744995038336,-500.0,0.00039877,31]
[358361762,1744995038345,-500.0,0.00039877,31]
[358361763,1744995038355,-500.0,0.00039877,31]
[358361764,1744995038364,-500.0,0.00039877,31]
[358361765,1744995038374,-500.0,0.00039877,31]
[358361766,1744995038383,-500.0,0.00039877,31]
[358361767,1744995038393,-200.0,0.0003988,2]
[358361768,1744995038402,-179.8,0.0004013,2]
[358361770,1744995038412,-1152.0,0.00040186,5]
[358361771,1744995038421,-36134.2821,0.00040192,2]
[358361773,1744995038430,-9363.5828,0.00040194,2]
[358361775,1744995038440,-1000.0,0.00040194,2]
[358361777,1744995038450,-2500.0,0.00040194,2]
[358361779,1744995038459,-94049.79722941,0.00040294,2]
[358361781,1744995038468,-161.49,0.00040333,2]
[358361783,1744995038477,-204.29,0.00040362,2]
[358361785,1744995038486,-296.44,0.00040364,2]
[358361786,1744995038495,-250.0,0.00040407,2]
[358361787,1744995038504,-181.64,0.00040419,120]
[358361788,1744995038513,-4000.0,0.00040438,2]
[358361789,1744995038521,-21684.13116207,0.00040438,2]
[358361791,1744995038533,-2215.86883793,0.00040438,2]
[358361794,1744995038542,-152.72,0.0004047,30]
[358361795,1744995038699,-557.41,0.00040474,2]
[358361796,1744995038709,-150.0,0.00040506,2]
[358361797,1744995038718,-2687.06072065,0.000406,16]
[358361798,1744995038727,-1004.55257123,0.00040658,120]
[358361800,1744995038736,-150.0,0.00040686,2]
[358361801,1744995038746,-150.0,0.00040734,2]
[358361803,1744995038755,-749.75,0.00040817,2]
[358361805,1744995038764,-200.0,0.00040844,2]
[358361807,1744995038774,-2022.03398384,0.00041095,2]
[358361809,1744995038783,-150.0,0.00041096,10]
[358361811,1744995038792,-1000.0,0.000412,7]
[358361813,1744995038802,-5160.49341654,0.00041544,15]
[358361815,1744995038811,-164.7488312,0.00041574,15]
[358361817,1744995038820,-1000.0,0.00041588,2]
[358361819,1744995038829,-300.0,0.000416,15]
[358361821,1744995038839,-397.65275181,0.0004162,2]
[358361823,1744995038851,-152.0,0.00041644,10]
[358361824,1744995038861,-600.0,0.000417,15]
[358361825,1744995038870,-397.65275182,0.00041765,2]
[358361826,1744995038879,-900.0,0.000418,15]
[358361827,1744995038890,-2886.3849,0.0004189,2]
[358361828,1744995038899,-500.0,0.0004189,2]
[358361829,1744995038909,-1903.881,0.000419,62]
[358361830,1744995038920,-225.0,0.000419,2]
[358361831,1744995038930,-1000.0,0.000419,2]
[358361832,1744995038939,-486.33760479,0.000419,5]
[358361833,1744995038949,-1200.0,0.000419,15]
[358361834,1744995038958,-165.36811531,0.000419,16]
[358361835,1744995038968,-582.0,0.0004197,120]
[358361836,1744995038977,-485.70205153,0.00041973,10]
[358361837,1744995038987,-500.0,0.00041973,10]
[358361838,1744995038997,-500.0,0.00041973,10]
[358361839,1744995039006,-617.60146143,0.00041973,10]
[358361840,1744995039017,-582.0,0.0004198,120]
[358361841,1744995039026,-4834.3934622,0.00041986,2]
[358361842,1744995039036,-10401.1975074,0.00041986,2]
[358361843,1744995039045,-79000.9726096,0.00041986,2]
[358361844,1744995039055,-293.42,0.00041989,2]
[358361845,1744995039064,-582.0,0.0004199,120]
[358361846,1744995039074,-150.54,0.0004199,2]
[358361847,1744995039083,-418.8126353,0.00041999,30]
[358361848,1744995039092,-300.0,0.00041999,30]
[358361849,1744995039102,-500.0,0.00041999,30]
[358361850,1744995039111,-1404.44671847,0.00041999,60]
[358361851,1744995039121,-201.02857644,0.00041999,60]
[358361852,1744995039130,-504.0,0.00042,7]
[358361853,1744995039139,-210082.63179592,0.00042,2]
[358361854,1744995039320,-1429.854,0.00042,2]
[358361855,1744995039352,-2399.54533833,0.00042,2]
[358361856,1744995039368,-2063.69998287,0.00042,2]
[358361857,1744995039379,-10014.0,0.00042,2]
[358361859,1744995040344,-332.76181,0.00042,2]
[358361860,1744995040552,-1325.0000005,0.00042,2]
[358361892,1744995042898,-432.0,0.00042,7]
[358361893,1744995042908,-2199.37196674,0.00042,2]
[358361894,1744995042979,-47.19377046,0.00042,2]
[358361915,1744995044723,-15499.99999999,0.00042,2]
[358361917,1744995045979,-4000.0,0.00042,2]
[358361918,1744995045990,-451.17942742,0.00042,2]
[358361919,1744995046037,-2339.35786319,0.00042,2]
[358361920,1744995046088,-3359.09996328,0.00042,2]
[358361921,1744995046099,-37742.40976548,0.00042,2]
[358361922,1744995046246,-2010.325,0.00042,2]
[358361938,1744995175428,-151.0,0.00033567,2]
[358361939,1744995175450,-151.0,0.00033567,2]
[358361940,1744995175473,-250.0,0.00033631,2]
[358361941,1744995175495,-151.0,0.00033695,2]
[358361942,1744995175516,-151.0,0.00033695,2]
[358361943,1744995175538,-250.0,0.00034639,2]
[358361944,1744995175559,-250.0,0.00036924,2]
[358361945,1744995175580,-200.0,0.00037898,2]
[358361946,1744995175601,-250.0,0.00037898,120]
[358361947,1744995175624,-500.0,0.00039726,2]
[358361948,1744995175646,-425.83277255,0.00039726,2]
[358361949,1744995175666,-300.0,0.00039876,5]
[358361950,1744995175688,-500.0,0.00039877,31]
[358361951,1744995175711,-500.0,0.00039877,31]
[358361952,1744995175733,-500.0,0.00039877,31]
[358361953,1744995175756,-500.0,0.00039877,31]
[358361954,1744995175780,-500.0,0.00039877,31]
[358361955,1744995175801,-500.0,0.00039877,31]
[358361956,1744995175825,-206.69820206,0.00039877,31]
[358361957,1744995175847,-500.0,0.00039877,31]
[358361958,1744995175871,-500.0,0.00039877,31]
[358361959,1744995182459,151.0,0.00033945,2]
[358361960,1744995184614,151.0,0.00033945,2]
[358361961,1744995198709,151.0,0.00033934,2]
[358361962,1744995200670,151.0,0.00035696,2]
[358361963,1744995214754,151.0,0.00035618,2]
[358361964,1744995216733,151.0,0.00035618,2]
[358361965,1744995230879,151.0,0.0003569,2]
[358361966,1744995233084,151.0,0.0003569,2]
[358361967,1744995242074,550.0,0.00040091,5]
[358361968,1744995247031,5.46902539,0.00035689,2]
[358361971,1744995452668,250.0,0.00017,2]
[358361972,1744995453881,300.0,0.00019,2]
[358361973,1744995484058,299.92,0.00019,2]
[358361974,1744995540176,150.97548029,0.00020686,20]
[358361976,1744995550947,269.93,0.00019,2]
[358361978,1744995618589,242.93,0.00018,2]
[358361979,1744995619639,-232.24,0.0002,2]
[358361981,1744995688838,195.42,0.00018,2]
[358361982,1744995734453,200.0,0.00048102,30]
[358361983,1744995735085,207.4,0.00048102,30]
[358361984,1744995735777,215.0738,0.00048102,30]
[358361985,1744995736396,223.0315306,0.00048102,30]
[358361986,1744995737025,231.28369723,0.00048102,30]
[358361987,1744995737680,239.84119403,0.00048102,30]
[358361988,1744995738485,248.71531821,0.00048102,30]
[358361989,1744995738958,257.91778498,0.00048102,30]
[358361990,1744995739613,267.46074303,0.00048102,30]
[358361991,1744995740275,277.35679052,0.00048102,30]
[358361992,1744995740899,287.61899177,0.00048102,30]
[358361993,1744995741534,298.26089446,0.00048102,30]
[358361994,1744995742385,298.26089446,0.00048102,30]
[358361995,1744995798268,-175.88,0.0002,2]
[358361996,1744995798470,-350.0,0.00021,2]
[358361997,1744995798493,-175.88,0.00021,2]
[358361998,1744995798515,-250.0,0.00022,2]
[358361999,1744995798538,-400.0,0.00023,2]
[358362000,1744995798560,-175.88,0.00023,2]
[358362001,1744995798584,-250.0,0.000231,2]
[358362002,1744995798607,-250.0,0.000238,2]
[358362003,1744995822893,150.0,0.00019,2]
[358362004,1744995823193,150.0,0.00021,2]
[358362005,1744995823474,150.0,0.00023,2]
[358362007,1744995889398,150.0,0.0002,2]
[358362008,1744995889687,150.0,0.00022,2]
[358362009,1744995889962,150.0,0.00023,2]
[358362010,1744995895812,1000.0,0.00048115,30]
[358362011,1744995954619,150.0,0.0002,2]
[358362012,1744995954829,181.11,0.00022,2]
[358362015,1744996028129,-450.0,0.00025,2]
[358362016,1744996028152,-250.0,0.000255,2]
[358362017,1744996028174,-250.0,0.000275,2]
[358362018,1744996028199,-250.0,0.000282,2]
[358362019,1744996028223,-296.44,0.00037898,2]
[358362020,1744996028245,-2710.69032713,0.00038256,2]
[358362021,1744996028267,-776.74170261,0.00038259,2]
[358362022,1744996035601,162.26409685,0.00048115,30]
[358362023,1744996046082,-164.18829739,0.00038259,2]
[358362024,1744996046105,-188.94127463,0.00038356,2]
[358362025,1744996046360,-158.75,0.0003927,2]
[358362026,1744996046384,-161.49,0.0003942,2]
[358362027,1744996046407,-204.3,0.00039442,2]
[358362028,1744996046427,-92.54907845,0.000398,2]
[358362029,1744996053142,-1018.60662225,0.000398,2]
[358362030,1744996053163,-723.45,0.00039824,2]
[358362031,1744996053184,-498.58,0.00040067,2]
[358362032,1744996053211,-200.0,0.00040076,2]
[358362033,1744996053233,-1903.881,0.00040091,57]
[358362034,1744996053256,-550.0,0.00040091,5]
[358362035,1744996053279,-550.0,0.00040091,4]
[358362036,1744996053303,-5312.37464582,0.00040091,2]
[358362040,1744996232123,-151.0,0.00034488,2]
[358362041,1744996232136,-151.0,0.00034488,2]
[358362042,1744996232148,-250.0,0.00037137,2]
[358362043,1744996232159,-250.0,0.000376,2]
[358362044,1744996232171,-250.0,0.00038921,2]
[358362045,1744996232182,-69.80847885,0.00039787,2]
[358362046,1744996232197,-152.87793814,0.00039787,2]
[358362047,1744996232209,-157.95,0.00039887,2]
[358362048,1744996232220,-550.0,0.0004009,5]
[358362049,1744996232231,-300.0,0.0004009,5]
[358362050,1744996232242,-959.27907109,0.00040091,2]
[358362051,1744996232256,-4110.11344713,0.00040091,2]
[358362052,1744996232274,-10279.54283596,0.00040091,2]
[358362053,1744996232286,-500.0,0.00040092,2]
[358362054,1744996232297,-34662.95716405,0.00040092,2]
[358362069,1744996232467,-90.2394387,0.00040092,2]
[358362094,1744996238104,-330.0,0.00040092,2]
[358362095,1744996238116,-1051.08549725,0.00040092,2]
[358362096,1744996238126,-1000.0,0.00040092,2]
[358362097,1744996238135,-590.06,0.00040092,2]
[358362098,1744996238144,-23900.0,0.00040107,2]
[358362099,1744996238154,-184.0,0.00040134,120]
[358362100,1744996238163,-204.29,0.00040149,2]
[358362101,1744996238172,-217.49,0.00040176,2]
[358362102,1744996238182,-4000.0,0.00040176,2]
[358362103,1744996238191,-150.0,0.0004038,2]
[358362104,1744996238200,-177.98,0.0004039,2]
[358362105,1744996238209,-1000.0,0.0004039,2]
[358362106,1744996238219,-316.0233,0.00040413,2]
[358362107,1744996238228,-1000.0,0.00040498,120]
[358362108,1744996238238,-18518.71774993,0.00040513,2]
[358362109,1744996238248,-940.93,0.00040523,2]
[358362110,1744996238257,-991.83,0.00040561,2]
[358362111,1744996238268,-844.02102529,0.00040658,120]
[358362112,1744996238280,-4101.19,0.00040758,2]
[358362113,1744996238290,-152.72,0.00040833,30]
[358362114,1744996238299,-2687.06072065,0.000409,16]
[358362115,1744996238308,-500.0,0.00041094,31]
[358362116,1744996238318,-500.0,0.00041094,31]
[358362117,1744996238327,-500.0,0.00041094,31]
[358362118,1744996238336,-500.0,0.00041094,31]
[358362119,1744996238346,-500.0,0.00041094,31]
[358362120,1744996238355,-500.0,0.00041094,31]
[358362121,1744996238364,-500.0,0.00041094,31]
[358362122,1744996238373,-500.0,0.00041094,31]
[358362123,1744996238382,-500.0,0.00041094,31]
[358362124,1744996238391,-500.0,0.00041094,31]
[358362125,1744996238400,-500.0,0.00041094,31]
[358362126,1744996238409,-500.0,0.00041094,31]
[358362127,1744996238419,-500.0,0.00041094,31]
[358362128,1744996238428,-500.0,0.00041094,31]
[358362129,1744996238438,-500.0,0.00041094,31]
[358362130,1744996238448,-500.0,0.00041094,31]
[358362131,1744996238457,-150.0,0.00041096,10]
[358362132,1744996238466,-3083.92,0.00041096,120]
[358362133,1744996238476,-1000.0,0.000411,7]
[358362135,1744996238486,-912.72,0.00041118,5]
[358362136,1744996238495,-250.0,0.00041332,2]
[358362137,1744996238505,-868.54,0.00041332,2]
[358362138,1744996238514,-397.65275181,0.00041394,2]
[358362139,1744996238523,-157.95,0.00041445,2]
[358362140,1744996238532,-1013.0,0.000415,7]
[358362141,1744996238541,-300.0,0.00041546,2]
[358362142,1744996238550,-300.0,0.000416,15]
[358362143,1744996238559,-152.0,0.00041644,10]
[358362144,1744996238568,-600.0,0.000417,15]
[358362145,1744996238576,-397.65275182,0.00041724,2]
[358362147,1744996238586,-6573.6023,0.0004179,2]
[358362149,1744996238595,-224.671,0.0004179,2]
[358362151,1744996238604,-2450.9755,0.0004179,2]
[358362152,1744996238613,-1148.7752,0.0004179,2]
[358362155,1744996238623,-4412.9143,0.0004179,2]
[358362157,1744996238632,-9363.5828,0.0004179,2]
[358362159,1744996238641,-164.7488312,0.00041799,15]
[358362160,1744996238650,-1000.0,0.000418,15]
[358362162,1744996238659,-708.19907246,0.000418,56]
[358362165,1744996238668,-1000.0,0.000418,2]
[358362167,1744996238678,-2500.0,0.00041886,2]
[358362169,1744996238687,-32992.0041,0.0004189,2]
[358362170,1744996238697,-168.25741301,0.00041899,28]
[358362172,1744996238708,-5567.8051,0.000419,2]
[358362174,1744996238717,-225.0,0.000419,2]
[358362178,1744996238730,-2886.3849,0.000419,2]
[358362179,1744996238739,-510.73113223,0.000419,5]
[358362181,1744996238748,-1300.0,0.000419,15]
[358362183,1744996238758,-165.36811531,0.000419,16]
[358362185,1744996238767,-5951.35304715,0.000419,15]
[358362187,1744996238776,-582.0,0.0004197,120]
[358362189,1744996238785,-500.0,0.00041973,10]
[358362191,1744996238794,-582.0,0.0004198,120]
[358362193,1744996238803,-582.0,0.0004199,120]
[358362195,1744996238812,-500.0,0.0004199,2]
[358362197,1744996238821,-500.0,0.0004199,2]
[358362199,1744996238832,-249.36777237,0.0004199,2]
[358362201,1744996238842,-500.0,0.0004199,2]
[358362203,1744996238851,-500.0,0.0004199,2]
[358362205,1744996238861,-150.0,0.0004199,2]
[358362207,1744996238871,-500.0,0.0004199,2]
[358362209,1744996238880,-150.0,0.0004199,2]
[358362211,1744996238889,-151.81,0.0004199,2]
[358362213,1744996238899,-151.81,0.0004199,2]
[358362215,1744996238908,-500.0,0.00041999,30]
[358362217,1744996238917,-300.0,0.00041999,30]
[358362219,1744996238927,-500.0,0.00041999,30]
[358362221,1744996238937,-201.02857644,0.00041999,60]
[358362223,1744996238946,-1404.44671847,0.00041999,60]
[358362225,1744996238956,-2022.03398384,0.00041999,2]
[358362227,1744996238965,-500.0,0.00041999,30]
[358362229,1744996238974,-150.77301638,0.00041999,30]
[358362231,1744996238984,-150.0,0.00041999,30]
[358362233,1744996238994,-150.0,0.00041999,30]
[358362235,1744996239004,-500.0,0.00041999,30]
[358362237,1744996239015,-150.0,0.00041999,30]
[358362239,1744996239024,-150.0,0.00041999,30]
[358362241,1744996239033,-150.75420148,0.00041999,30]
[358362243,1744996239043,-275.91926744,0.00041999,30]
[358362245,1744996239052,-150.0,0.00041999,30]
[358362247,1744996239061,-154.01,0.00041999,15]
[358362249,1744996239071,-441.0,0.00042,7]
[358362251,1744996239080,-4483.29314695,0.00042,18]
[358362253,1744996239092,-20930.66981399,0.00042,18]
[358362255,1744996239101,-508.27925922,0.00042,18]
[358362257,1744996239110,-319130.7132302,0.00042,2]
[358362260,1744996239126,-673.364,0.00042,2]
[358362262,1744996239137,-395.77951,0.00042,2]
[358362264,1744996239147,-757.45,0.00042,2]
[358362267,1744996239158,-2000.0,0.00042,2]
[358362286,1744996239338,-312.43542117,0.00042,2]
[358362398,1744996240363,-6689.4758,0.00040413,2]
[358362400,1744996240372,-1576803.72310167,0.00042,2]
[358362402,1744996240382,-42303.53468255,0.00042,14]
[358362404,1744996240391,-290973.18753634,0.00042,2]
[358362406,1744996240400,-19250.0,0.00042,30]
[358362408,1744996240410,-2034.01,0.00042,14]
[358362410,1744996240420,-210.0,0.00042,120]
[358362412,1744996240430,-200.0,0.00042,7]
[358362414,1744996240440,-200.0,0.00042,7]
[358362416,1744996240450,-1500.0,0.00042,15]
[358362418,1744996240459,-151.0,0.00042,30]
[358362420,1744996240468,-151.0,0.00042,30]
[358362422,1744996240477,-151.0,0.00042,30]
[358362424,1744996240487,-151.0,0.00042,30]
[358362426,1744996240496,-151.0,0.00042,30]
[358362428,1744996240505,-151.0,0.00042,30]
[358362430,1744996240514,-151.0,0.00042,30]
[358362432,1744996240524,-151.0,0.00042,30]
[358362434,1744996240533,-151.0,0.00042,30]
[358362436,1744996240542,-151.0,0.00042,30]
[358362438,1744996240551,-151.0,0.00042,30]
[358362440,1744996240560,-151.0,0.00042,30]
[358362442,1744996240569,-151.0,0.00042,30]
[358362444,1744996240578,-151.0,0.00042,30]
[358362446,1744996240588,-151.0,0.00042,30]
[358362448,1744996240597,-151.0,0.00042,30]
[358362450,1744996240607,-151.0,0.00042,30]
[358362452,1744996240616,-151.0,0.00042,30]
[358362454,1744996240626,-151.0,0.00042,30]
[358362456,1744996240635,-151.0,0.00042,30]
[358362458,1744996240645,-151.0,0.00042,30]
[358362460,1744996240655,-151.0,0.00042,30]
[358362462,1744996240664,-151.0,0.00042,30]
[358362464,1744996240674,-151.0,0.00042,30]
[358362466,1744996240683,-278.48205791,0.00042,30]
[358362468,1744996240692,-151.0,0.00042,14]
[358362470,1744996240701,-151.0,0.00042,14]
[358362472,1744996240711,-151.0,0.00042,14]
[358362474,1744996240720,-151.0,0.00042,14]
[358362475,1744996240729,-155.962886,0.00042,14]
[358362476,1744996240738,-151.967594,0.00042,14]
[358362477,1744996240747,-1021.425147,0.00042,14]
[358362478,1744996240755,-1021.425147,0.00042,14]
[358362479,1744996240765,-151.0,0.00042,14]
[358362480,1744996240774,-288.356188,0.00042,14]
[358362481,1744996240783,-151.0,0.00042,14]
[358362482,1744996240791,-151.0,0.00042,14]
[358362483,1744996240800,-151.0,0.00042,14]
[358362484,1744996240809,-256.164223,0.00042,14]
[358362485,1744996240818,-404.797649,0.00042,14]
[358362486,1744996240827,-256.164223,0.00042,14]
[358362487,1744996240835,-1000.0,0.00042,7]
[358362488,1744996240845,-151.0,0.00042,14]
[358362489,1744996240854,-404.797649,0.00042,14]
[358362490,1744996240863,-161.76397,0.00042,14]
[358362492,1744996240872,-161.76397,0.00042,14]
[358362494,1744996240881,-6201.6637023,0.00042104,2]
[358362496,1744996240890,-13204.7266953,0.00042104,2]
[358362498,1744996240899,-500.0,0.00042133,30]
[358362500,1744996240908,-418.8126353,0.00042133,30]
[358362502,1744996240917,-100294.8219402,0.00042134,2]
[358362504,1744996240926,-485.70205153,0.00042173,10]
[358362506,1744996240935,-617.60146143,0.00042173,10]
[358362508,1744996240944,-154.0,0.00042192,10]
[358362510,1744996240953,-1000.0,0.000423,7]
[358362512,1744996240962,-150.37497669,0.000424,7]
[358362514,1744996240971,-500.0,0.000424,7]
[358362516,1744996240980,-500.0,0.000424,7]
[358362518,1744996240989,-500.0,0.000424,7]
[358362520,1744996240998,-150.0,0.000424,7]
[358362522,1744996241007,-262.88238468,0.000424,7]
[358362524,1744996241016,-500.0,0.000424,7]
[358362526,1744996241025,-500.0,0.000424,7]
[358362528,1744996241034,-500.0,0.000424,7]
[358362530,1744996241043,-10422.60941684,0.0004265,2]
[358362532,1744996241052,-156.0,0.0004274,10]
[358362534,1744996241062,-940.93,0.00042787,2]
[358362536,1744996241071,-300.0,0.00042916,2]
[358362538,1744996241080,-157.3408559,0.00042959,2]
[358362540,1744996241089,-500.0,0.00042973,10]
[358362542,1744996241099,-500.0,0.00042973,10]
[358362544,1744996241108,-563.33401353,0.00042973,10]
[358362546,1744996241117,-191.42485079,0.00042999,30]
[358362548,1744996241126,-113594.08830885,0.00043,3]
[358362550,1744996241135,-151.0,0.00043,14]
[358362552,1744996241144,-154.946736,0.00043,14]
[358362554,1744996241154,-152.399325,0.00043,14]
[358362556,1744996241163,-166.907765,0.00043,14]
[358362558,1744996241172,-151.0,0.00043,14]
[358362560,1744996241181,-151.0,0.00043,14]
[358362562,1744996241190,-151.0,0.00043,14]
[358362564,1744996241199,-151.0,0.00043,14]
[358362566,1744996241209,-151.0,0.00043,14]
[358362568,1744996241219,-151.0,0.00043,14]
[358362570,1744996241228,-151.0,0.00043,14]
[358362572,1744996241237,-151.0,0.00043,14]
[358362574,1744996241246,-151.0,0.00043,14]
[358362575,1744996241255,-151.0,0.00043,14]
[358362577,1744996241264,-151.0,0.00043,14]
[358362579,1744996241276,-151.0,0.00043,2]
[358362581,1744996241285,-151.0,0.00043,14]
[358362583,1744996241295,-151.0,0.00043,14]
[358362585,1744996241304,-151.0,0.00043,14]
[358362587,1744996241313,-151.0,0.00043,14]
[358362589,1744996241323,-153.032533,0.00043,14]
[358362591,1744996241332,-155.254723,0.00043,14]
[358362593,1744996241341,-151.0,0.00043,14]
[358362595,1744996241350,-151.0,0.00043,14]
[358362597,1744996241359,-151.0,0.00043,14]
[358362599,1744996241368,-151.0,0.00043,14]
[358362601,1744996241378,-151.0,0.00043,14]
[358362603,1744996241387,-151.0,0.00043,14]
[358362605,1744996241396,-151.0,0.00043,14]
[358362607,1744996241407,-151.0,0.00043,14]
[358362609,1744996241424,-151.0,0.00043,14]
[358362611,1744996241434,-159.205835,0.00043,14]
[358362613,1744996241443,-151.0,0.00043,14]
[358362615,1744996241452,-152.424285,0.00043,14]
[358362617,1744996241461,-151.0,0.00043,14]
[358362619,1744996241470,-151.0,0.00043,14]
[358362621,1744996241479,-157.95,0.00043002,2]
[358362638,1744996241619,-5951.35304711,0.00043122,15]
[358362640,1744996241628,-1000.0,0.0004321,2]
[358362642,1744996241638,-185.35720069,0.00043288,10]
[358362644,1744996241647,-153.0,0.00043288,30]
[358362645,1744996241656,-153.0,0.00043288,30]
[358362647,1744996241665,-153.0,0.00043288,30]
[358362649,1744996241674,-153.0,0.00043288,30]
[358362652,1744996241683,-153.0,0.00043288,30]
[358362653,1744996241693,-153.0,0.00043288,30]
[358362655,1744996241702,-153.0,0.00043288,30]
[358362657,1744996241711,-153.0,0.00043288,30]
[358362659,1744996241720,-153.0,0.00043288,30]
[358362661,1744996241729,-153.0,0.00043288,30]
[358362663,1744996241738,-153.0,0.00043288,30]
[358362665,1744996241747,-153.0,0.00043288,30]
[358362667,1744996241756,-153.0,0.00043288,30]
[358362669,1744996241766,-153.0,0.00043288,30]
[358362671,1744996241775,-153.0,0.00043288,30]
[358362673,1744996241784,-153.0,0.00043288,30]
[358362675,1744996241794,-153.0,0.00043288,30]
[358362677,1744996241803,-153.0,0.00043288,30]
[358362679,1744996241812,-153.0,0.00043288,30]
[358362681,1744996241822,-153.0,0.00043288,30]
[358362683,1744996241831,-153.0,0.00043288,30]
[358362685,1744996241841,-153.0,0.00043288,30]
[358362687,1744996241850,-153.0,0.00043288,30]
[358362689,1744996241859,-153.0,0.00043288,30]
[358362691,1744996241868,-153.0,0.00043288,30]
[358362693,1744996241877,-153.0,0.00043288,30]
[358362695,1744996241886,-153.0,0.00043288,30]
[358362697,1744996241895,-153.0,0.00043288,30]
[358362699,1744996241905,-153.0,0.00043288,30]
[358362701,1744996241915,-153.0,0.00043288,30]
[358362703,1744996241924,-153.0,0.00043288,30]
[358362705,1744996241933,-153.0,0.00043288,30]
[358362707,1744996241942,-153.0,0.00043288,30]
[358362709,1744996241951,-11217.76,0.00043513,2]
[358362711,1744996241960,-19999.99,0.00043513,2]
[358362713,1744996241969,-770.0,0.00043555,5]
[358362715,1744996241978,-164.7488312,0.00043649,15]
[358362717,1744996241988,-1106.8652,0.00043888,30]
[358362719,1744996241999,-360.0,0.00044,90]
[358362721,1744996242009,-157.668222,0.00044319,14]
[358362723,1744996242018,-151.0,0.00044319,14]
[358362725,1744996242027,-154.716897,0.00044319,14]
[358362727,1744996242036,-1021.425147,0.00044319,14]
[358362729,1744996242045,-1021.425147,0.00044319,14]
[358362731,1744996242055,-151.0,0.00044319,14]
[358362733,1744996242065,-151.0,0.00044319,14]
[358362735,1744996242073,-151.0,0.00044319,14]
[358362737,1744996242082,-153.723189,0.00044319,14]
[358362738,1744996242091,-256.164223,0.00044319,14]